lending/lending_fUSD_20250131
["ID","MTS","AMOUNT","RATE_DAILY","PERIOD"]
[351092109,1738330280497,-921.76,0.0001767,2]
[351092110,1738330280507,-500.0,0.0001767,2]
[351092111,1738330280517,-554.28,0.0001767,2]
[351092112,1738330280526,-500.0,0.0001767,2]
[351092113,1738330280537,-500.0,0.0001767,2]
[351092114,1738330280548,-535.26,0.0001767,2]
[351092115,1738330280557,-500.0,0.0001767,2]
[351092116,1738330280567,-500.0,0.0001767,2]
[351092117,1738330280576,-500.0,0.0001767,2]
[351092118,1738330280586,-500.0,0.0001767,2]
[351092119,1738330280596,-548.31,0.0001767,2]
[351092120,1738330280605,-500.0,0.0001767,2]
[351092121,1738330280615,-500.0,0.0001767,2]
[351092122,1738330280625,-504.97,0.0001767,2]
[351092123,1738330280635,-500.0,0.0001767,2]
[351092124,1738330280644,-500.0,0.0001767,2]
[351092125,1738330280654,-500.0,0.0001767,2]
[351092126,1738330280663,-500.0,0.0001767,2]
[351092127,1738330280672,-500.0,0.0001767,2]
[351092128,1738330280681,-672.19,0.0001767,2]
[351092129,1738330280692,-500.0,0.0001767,2]
[351092130,1738330280701,-500.0,0.0001767,2]
[351092131,1738330280715,-500.0,0.0001767,2]
[351092132,1738330280725,-718.71,0.0001767,2]
[351092133,1738330280734,-500.0,0.0001767,2]
[351092134,1738330280743,-500.0,0.0001767,2]
[351092135,1738330280752,-500.0,0.0001767,2]
[351092136,1738330280761,-151.0,0.0001767,2]
[351092137,1738330280770,-500.0,0.0001767,2]
[351092138,1738330280780,-500.0,0.0001767,2]
[351092139,1738330280789,-500.0,0.0001767,2]
[351092140,1738330280798,-527.97,0.0001767,2]
[351092141,1738330280807,-151.0,0.0001767,2]
[351092142,1738330280817,-1958.17,0.0001767,2]
[351092143,1738330280827,-500.0,0.0001767,2]
[351092144,1738330280836,-1086.27,0.0001767,2]
[351092145,1738330280846,-500.0,0.0001767,2]
[351092146,1738330280855,-500.0,0.0001767,2]
[351092147,1738330280865,-508.42,0.0001767,2]
[351092148,1738330280874,-2213.4,0.0001767,2]
[351092149,1738330280884,-500.0,0.0001767,2]
[351092150,1738330280894,-750.16,0.0001767,2]
[351092151,1738330280904,-1214.4,0.0001767,2]
[351092152,1738330280913,-1648.29,0.0001767,2]
[351092153,1738330280922,-535.09,0.0001767,2]
[351092154,1738330280931,-1054.03,0.0001767,2]
[351092155,1738330280941,-1696.88,0.0001767,2]
[351092156,1738330280950,-500.0,0.0001767,2]
[351092157,1738330280963,-913.79,0.0001767,2]
[351092158,1738330280973,-798.88,0.0001767,2]
[351092159,1738330280982,-887.86,0.0001767,2]
[351092160,1738330280992,-1548.0,0.0001767,2]
[351092161,1738330281002,-500.0,0.0001767,2]
[351092162,1738330281011,-777.96,0.0001767,2]
[351092163,1738330281020,-1988.47,0.0001767,2]
[351092164,1738330281030,-500.0,0.0001767,2]
[351092165,1738330281039,-2656.93,0.0001767,2]
[351092166,1738330281049,-500.0,0.0001767,2]
[351092167,1738330281058,-500.0,0.0001767,2]
[351092168,1738330281068,-2337.51,0.0001767,2]
[351092169,1738330281077,-4645.5,0.0001767,2]
[351092170,1738330281087,-500.0,0.0001767,2]
[351092171,1738330281097,-10518.3,0.0001767,2]
[351092172,1738330281106,-450.44749537,0.0001767,2]
[351092173,1738330281116,-500.0,0.0001767,2]
[351092174,1738330281125,-500.0,0.0001767,2]
[351092175,1738330281135,-1506.86,0.0001767,2]
[351092176,1738330281145,-878.68,0.0001767,2]
[351092177,1738330281154,-151.0,0.0001767,2]
[351092178,1738330281164,-500.0,0.00017671,2]
[351092179,1738330281173,-585.38,0.00017671,2]
[351092180,1738330281182,-501.6,0.00017671,2]
[351092181,1738330281191,-500.0,0.00017671,2]
[351092182,1738330281200,-500.0,0.00017671,2]
[351092183,1738330281214,-500.0,0.00017671,2]
[351092184,1738330281223,-500.0,0.00017671,2]
[351092185,1738330281232,-500.0,0.00017671,2]
[351092186,1738330281242,-320.4309253,0.00017671,2]
[351092187,1738330281251,-928.97,0.00017671,2]
[351092188,1738330281260,-1010.68,0.00017671,2]
[351092189,1738330281269,-660.51,0.00017671,2]
[351092190,1738330281279,-764.61,0.00017671,2]
[351092191,1738330281288,-823.51,0.00017671,2]
[351092192,1738330281297,-596.38,0.00017671,2]
[351092193,1738330281307,-500.0,0.00017671,2]
[351092194,1738330281316,-500.0,0.00017671,2]
[351092195,1738330281325,-1181.6,0.00017671,2]
[351092196,1738330281334,-1755.36,0.00017671,2]
[351092197,1738330281343,-774.61,0.00017671,2]
[351092198,1738330281353,-945.59,0.00017671,2]
[351092199,1738330281363,-691.43,0.00017671,2]
[351092200,1738330281373,-207.92308016,0.00017671,2]
[351092201,1738330281382,-678.94,0.00017671,2]
[351092202,1738330281392,-500.0,0.00017671,2]
[351092203,1738330281402,-502.29,0.00017671,2]
[351092204,1738330281411,-1393.13,0.00017671,2]
[351092205,1738330281420,-1153.02,0.00017671,2]
[351092206,1738330281430,-684.77,0.00017671,2]
[351092207,1738330281439,-796.76,0.00017671,2]
[351092208,1738330281448,-732.31,0.00017671,2]
[351092209,1738330281461,-182.92475655,0.00017671,2]
[351092210,1738330281470,-500.0,0.00017671,2]
[351092211,1738330281479,-768.25,0.00017671,2]
[351092212,1738330281488,-1222.29,0.00017671,2]
[351092213,1738330281498,-500.0,0.00017671,2]
[351092214,1738330281508,-1062.2,0.00017671,2]
[351092215,1738330281518,-500.0,0.00017671,2]
[351092216,1738330281527,-649.99,0.00017671,2]
[351092217,1738330281538,-707.49,0.00017671,2]
[351092218,1738330281549,-672.57,0.00017671,2]
[351092219,1738330281559,-668.38,0.00017671,2]
[351092220,1738330281568,-268.58983092,0.00017671,2]
[351092221,1738330281578,-552.78,0.00017671,2]
[351092222,1738330281588,-655.08,0.00017671,2]
[351092223,1738330281598,-853.48,0.00017671,2]
[351092224,1738330281607,-543.67,0.00017671,2]
[351092225,1738330281616,-810.58,0.00017671,2]
[351092226,1738330281628,-500.0,0.00017671,2]
[351092227,1738330281638,-298.75655905,0.00017671,2]
[351092228,1738330281647,-553.86,0.00017671,2]
[351092229,1738330281656,-500.0,0.00017671,2]
[351092230,1738330281665,-618.0,0.00017671,2]
[351092231,1738330281675,-500.0,0.00017671,2]
[351092232,1738330281684,-611.55,0.00017671,2]
[351092233,1738330281693,-500.0,0.00017671,2]
[351092234,1738330281702,-780.11,0.00017671,2]
[351092235,1738330281715,-1177.028054,0.00017671,2]
[351092236,1738330281724,-667.09,0.00017671,2]
[351092237,1738330281734,-569.96,0.00017671,2]
[351092238,1738330281743,-500.0,0.00017671,2]
[351092239,1738330281752,-906.03,0.00017671,2]
[351092240,1738330281761,-528.42,0.00017671,2]
[351092241,1738330281771,-500.0,0.00017671,2]
[351092242,1738330281780,-576.51,0.00017671,2]
[351092243,1738330281789,-1111.52,0.00017671,2]
[351092244,1738330281798,-1040.51,0.00017671,2]
[351092245,1738330281808,-500.0,0.00017671,2]
[351092246,1738330281817,-817.512057,0.00017671,2]
[351092247,1738330281827,-558.66,0.00017671,2]
[351092248,1738330281836,-500.0,0.00017671,2]
[351092249,1738330281845,-749.14,0.00017671,2]
[351092250,1738330281854,-1177.09,0.00017671,2]
[351092251,1738330281863,-500.0,0.00017671,2]
[351092252,1738330281873,-500.0,0.00017671,2]
[351092253,1738330281882,-617.77,0.00017671,2]
[351092254,1738330281891,-500.0,0.00017671,2]
[351092255,1738330281900,-151.0,0.00017671,2]
[351092256,1738330281909,-500.0,0.00017671,2]
[351092257,1738330281919,-896.66,0.00017671,2]
[351092258,1738330281928,-187.266091,0.00017671,2]
[351092259,1738330281937,-1019.41,0.00017671,2]
[351092260,1738330281947,-787.85,0.00017671,2]
[351092261,1738330281960,-500.0,0.00017671,2]
[351092262,1738330281968,-749.64,0.00017671,2]
[351092263,1738330281977,-599.93,0.00017671,2]
[351092264,1738330282051,-595.18,0.00017671,2]
[351092265,1738330282061,-557.9,0.00017671,2]
[351092266,1738330282070,-500.0,0.00017671,2]
[351092267,1738330282080,-658.91,0.00017671,2]
[351092268,1738330282089,-599.3,0.00017671,2]
[351092269,1738330282098,-590.44,0.00017671,2]
[351092270,1738330282107,-633.02,0.00017671,2]
[351092271,1738330282116,-500.0,0.00017671,2]
[351092272,1738330282125,-500.0,0.00017671,2]
[351092273,1738330282135,-722.92,0.00017671,2]
[351092274,1738330282144,-500.0,0.00017671,2]
[351092275,1738330282153,-1091.9,0.00017671,2]
[351092276,1738330282162,-813.36,0.00017671,2]
[351092277,1738330282172,-501.67,0.00017671,2]
[351092278,1738330282182,-1147.13,0.00017671,2]
[351092279,1738330282192,-500.0,0.00017671,2]
[351092280,1738330282200,-665.96,0.00017671,2]
[351092281,1738330282213,-500.0,0.00017671,2]
[351092282,1738330282222,-500.0,0.00017671,2]
[351092283,1738330282231,-899.19,0.00017671,2]
[351092284,1738330282240,-1174.92,0.00017671,2]
[351092285,1738330282249,-668.92,0.00017671,2]
[351092286,1738330282259,-912.48,0.00017671,2]
[351092287,1738330282267,-1476.07,0.00017671,2]
[351092288,1738330282276,-153.065871,0.00017671,2]
[351092289,1738330282286,-650.58,0.00017671,2]
[351092290,1738330282295,-2128.17,0.00017671,2]
[351092291,1738330282304,-648.91,0.00017671,2]
[351092292,1738330282313,-500.0,0.00017671,2]
[351092293,1738330282322,-689.56,0.00017671,2]
[351092294,1738330282331,-971.49,0.00017671,2]
[351092295,1738330282341,-820.44,0.00017671,2]
[351092296,1738330282350,-2443.42,0.00017671,2]
[351092297,1738330282360,-1597.55,0.00017671,2]
[351092298,1738330282369,-928.42,0.00017671,2]
[351092299,1738330282378,-1387.33,0.00017671,2]
[351092300,1738330282387,-500.0,0.00017671,2]
[351092301,1738330282396,-693.9,0.00017671,2]
[351092302,1738330282406,-2195.25,0.00017671,2]
[351092303,1738330282415,-872.91,0.00017671,2]
[351092304,1738330282425,-10802.73,0.00017671,2]
[351092305,1738330282434,-1041.55,0.00017671,2]
[351092306,1738330282443,-777.0,0.00017671,2]
[351092307,1738330282452,-2419.41,0.00017671,2]
[351092308,1738330282467,-1574.18,0.00017671,2]
[351092309,1738330282477,-1389.39,0.00017671,2]
[351092310,1738330282486,-892.74,0.00017671,2]
[351092311,1738330282495,-683.62,0.00017671,2]
[351092312,1738330282505,-1428.06,0.00017671,2]
[351092313,1738330282515,-1479.4,0.00017671,2]
[351092314,1738330282524,-500.0,0.00017671,2]
[351092315,1738330282534,-955.05,0.00017671,2]
[351092316,1738330282544,-788.97,0.00017671,2]
[351092317,1738330282557,-788.4,0.00017671,2]
[351092318,1738330282567,-1281.17,0.00017671,2]
[351092319,1738330282576,-599.37,0.00017671,2]
[351092320,1738330282586,-1774.15,0.00017671,2]
[351092321,1738330282596,-853.36,0.00017671,2]
[351092322,1738330282605,-665.64,0.00017671,2]
[351092323,1738330282615,-692.58,0.00017671,2]
[351092324,1738330282624,-4499.05,0.00017671,2]
[351092325,1738330282634,-2204.99,0.00017671,2]
[351092326,1738330282643,-500.0,0.00017671,2]
[351092327,1738330282653,-1244.32,0.00017671,2]
[351092328,1738330282663,-582.4162505,0.00017671,2]
[351092329,1738330282673,-2221.39,0.00017671,2]
[351092330,1738330282683,-582.68,0.00017671,2]
[351092331,1738330282693,-1029.05,0.00017671,2]
[351092332,1738330282702,-1011.4,0.00017671,2]
[351092333,1738330282716,-1376.47,0.00017671,2]
[351092334,1738330282725,-4123.97,0.00017671,2]
[351092335,1738330282735,-1294.35,0.00017671,2]
[351092336,1738330282744,-902.32,0.00017671,2]
[351092337,1738330282753,-847.74,0.00017671,2]
[351092338,1738330282763,-533.87,0.00017671,2]
[351092339,1738330282772,-2673.95,0.00017671,2]
[351092340,1738330282781,-153.065871,0.00017671,2]
[351092341,1738330282791,-3729.53,0.00017671,2]
[351092342,1738330282800,-151.0,0.00017671,2]
[351092343,1738330282809,-1251.69,0.00017671,2]
[351092344,1738330282818,-500.0,0.00017671,2]
[351092345,1738330282827,-860.21,0.00017671,2]
[351092346,1738330282836,-992.97,0.00017671,2]
[351092347,1738330282846,-987.07,0.00017671,2]
[351092348,1738330282855,-756.61,0.00017671,2]
[351092349,1738330282864,-151.0,0.00017671,2]
[351092350,1738330282873,-664.58,0.00017671,2]
[351092351,1738330282882,-502.19,0.00017671,2]
[351092352,1738330282891,-1951.73,0.00017671,2]
[351092353,1738330282900,-630.67,0.00017671,2]
[351092354,1738330282910,-915.53,0.00017671,2]
[351092355,1738330282920,-500.0,0.00017671,2]
[351092356,1738330282931,-637.45,0.00017671,2]
[351092357,1738330282940,-500.0,0.00017671,2]
[351092358,1738330282951,-1177.21,0.00017671,2]
[351092359,1738330282963,-1804.68,0.00017671,2]
[351092360,1738330282972,-2725.19,0.00017671,2]
[351092361,1738330282981,-808.60951797,0.00017671,2]
[351092362,1738330283218,-500.0,0.00016438,2]
[351092363,1738330283228,-1116.78048203,0.00017671,2]
[351092364,1738330283238,-63.94941885,0.00017671,2]
[351092365,1738330554282,-548.74,0.00011999,2]
[351092366,1738331037751,1354.32,0.00011619,2]
[351092367,1738331137658,150.68,0.00010137,2]
[351092369,1738331184821,163.69948666,0.00011896,2]
[351092370,1738331199138,-150.0,0.00012205,2]
[351092371,1738331199159,-34.79692844,0.0001241,2]
[351092386,1738331432087,-200.0,0.00013442,2]
[351092387,1738331432096,-2000.0,0.00013474,2]
[351092388,1738331432105,-250.0,0.00013484,2]
[351092389,1738331432115,-150.0,0.00013507,2]
[351092390,1738331432123,-1000.0,0.00013521,2]
[351092391,1738331432132,-758.3,0.0001353,2]
[351092392,1738331432141,-171.82,0.00013549,2]
[351092393,1738331432150,-1500.0,0.00013584,2]
[351092394,1738331432159,-150.0,0.00013636,2]
[351092395,1738331432168,-150.0,0.00013651,2]
[351092396,1738331432176,-494.5,0.00013663,2]
[351092397,1738331432185,-23900.0,0.00013821,2]
[351092398,1738331432197,-253.88,0.00013841,2]
[351092399,1738331432205,-1354.32,0.00013883,2]
[351092400,1738331432214,-1629.37,0.00013931,2]
[351092401,1738331432223,-186.62,0.00014096,2]
[351092402,1738331432232,-154.37,0.00014165,2]
[351092403,1738331432241,-154.37,0.00014172,2]
[351092404,1738331432250,-154.37,0.00014179,2]
[351092405,1738331432260,-154.37,0.00014186,2]
[351092406,1738331432268,-154.37,0.00014193,2]
[351092407,1738331432278,-154.37,0.000142,2]
[351092408,1738331432287,-154.37,0.00014207,2]
[351092409,1738331432296,-150.0,0.00014214,2]
[351092410,1738331432305,-154.37,0.00014214,2]
[351092411,1738331432314,-154.37,0.00014221,2]
[351092412,1738331432323,-154.37,0.00014229,2]
[351092413,1738331432332,-154.37,0.00014236,2]
[351092414,1738331432341,-175.68,0.0001436,2]
[351092415,1738331432350,-253.88,0.00014534,2]
[351092416,1738331432360,-1150.0,0.00015,2]
[351092417,1738331432369,-1000.0,0.00015211,2]
[351092418,1738331432379,-758.3,0.00015221,2]
[351092419,1738331432388,-253.88,0.00015226,2]
[351092420,1738331432397,-1000.0,0.00015296,2]
[351092421,1738331432406,-175.68,0.00015545,2]
[351092422,1738331432415,-500.0,0.0001589,2]
[351092423,1738331432425,-253.88,0.00015918,2]
[351092424,1738331432434,-343.31628602,0.00016092,2]
[351092425,1738331432446,-1354.32,0.00016147,2]
[351092426,1738331432456,-2890.06637076,0.00016337,2]
[351092467,1738331432909,-858.11057195,0.00016337,2]
[351092470,1738331432930,-2823.01785729,0.00016337,2]
[351092472,1738331432939,-31588.9376,0.00016337,2]
[351092474,1738331432948,-387.0664,0.00016338,2]
[351092476,1738331432958,-6323.906,0.00016338,2]
[351092478,1738331432967,-992.3027,0.00016338,2]
[351092479,1738331432976,-5000.0,0.00016338,2]
[351092482,1738331432985,-2500.0,0.00016338,2]
[351092483,1738331432996,-550.02,0.00016428,2]
[351092486,1738331433006,-2254.74944271,0.00016436,4]
[351092488,1738331433018,-1870.0,0.00016436,4]
[351092490,1738331433030,-40947.61598708,0.00016436,4]
[351092492,1738331433041,-3156.59999991,0.00016436,4]
[351092495,1738331433058,-686.71725823,0.00016436,4]
[351092497,1738331433068,-395.62927115,0.00016437,2]
[351092499,1738331433077,-19087.63260973,0.00016437,2]
[351092501,1738331433088,-8484.65009237,0.00016437,2]
[351092503,1738331433099,-628.13111172,0.00016437,2]
[351092505,1738331433110,-338.76805,0.00016437,2]
[351092509,1738331433136,-1868.59057875,0.00016437,2]
[351092511,1738331433147,-61101.20818528,0.00016437,2]
[351092513,1738331433156,-500.0,0.00016438,2]
[351092516,1738331433166,-500.0,0.00016438,2]
[351092518,1738331433175,-500.0,0.00016438,2]
[351092520,1738331433184,-503.68936495,0.00016438,2]
[351092522,1738331433194,-500.0,0.00016438,2]
[351092524,1738331433203,-500.0,0.00016438,2]
[351092526,1738331433213,-500.0,0.00016438,2]
[351092528,1738331433221,-617.282471,0.00016438,2]
[351092530,1738331433231,-500.0,0.00016438,2]
[351092531,1738331433240,-500.0,0.00016438,2]
[351092533,1738331433250,-500.0,0.00016438,2]
[351092535,1738331433259,-500.0,0.00016438,2]
[351092537,1738331433268,-529.48,0.00016438,2]
[351092539,1738331433278,-500.0,0.00016438,2]
[351092541,1738331433287,-500.0,0.00016438,2]
[351092543,1738331433296,-901.463894,0.00016438,2]
[351092545,1738331433306,-500.0,0.00016438,2]
[351092547,1738331433315,-500.0,0.00016438,2]
[351092549,1738331433324,-500.0,0.00016438,2]
[351092551,1738331433333,-153.436238,0.00016438,2]
[351092553,1738331433343,-631.66654581,0.00016438,2]
[351092555,1738331433352,-500.0,0.00016438,2]
[351092557,1738331433361,-500.0,0.00016438,2]
[351092559,1738331433371,-441.00153378,0.00016438,2]
[351092561,1738331433380,-500.0,0.00016438,2]
[351092563,1738331433390,-500.0,0.00016438,2]
[351092565,1738331433399,-500.0,0.00016438,2]
[351092567,1738331433409,-500.0,0.00016438,2]
[351092569,1738331433418,-500.0,0.00016438,2]
[351092571,1738331433427,-500.0,0.00016438,2]
[351092573,1738331433436,-500.0,0.00016438,2]
[351092575,1738331433446,-500.0,0.00016438,2]
[351092576,1738331433455,-500.0,0.00016438,2]
[351092577,1738331433464,-500.0,0.00016438,2]
[351092578,1738331433474,-500.0,0.00016438,2]
[351092579,1738331433484,-500.0,0.00016438,2]
[351092580,1738331433493,-500.0,0.00016438,2]
[351092581,1738331433503,-500.0,0.00016438,2]
[351092582,1738331433512,-500.0,0.00016438,2]
[351092583,1738331433521,-500.0,0.00016438,2]
[351092584,1738331433531,-500.0,0.00016438,2]
[351092585,1738331433541,-500.0,0.00016438,2]
[351092586,1738331433550,-500.0,0.00016438,2]
[351092587,1738331433560,-500.0,0.00016438,2]
[351092588,1738331433569,-500.0,0.00016438,2]
[351092589,1738331433579,-500.0,0.00016438,2]
[351092590,1738331433588,-538.41810195,0.00016438,2]
[351092591,1738331433598,-500.0,0.00016438,2]
[351092592,1738331433607,-500.0,0.00016438,2]
[351092593,1738331433617,-511.23,0.00016438,2]
[351092594,1738331433627,-500.0,0.00016438,2]
[351092595,1738331433637,-500.0,0.00016438,2]
[351092596,1738331433646,-500.0,0.00016438,2]
[351092598,1738331433656,-500.0,0.00016438,2]
[351092600,1738331433665,-500.0,0.00016438,2]
[351092601,1738331433675,-289.75406214,0.00016438,2]
[351092602,1738331433684,-500.0,0.00016438,2]
[351092603,1738331433696,-402.03270368,0.00016438,2]
[351092604,1738331433706,-532.27953626,0.00016438,2]
[351092605,1738331433716,-500.0,0.00016438,2]
[351092606,1738331433725,-500.0,0.00016438,2]
[351092607,1738331433735,-500.0,0.00016438,2]
[351092608,1738331433744,-500.0,0.00016438,2]
[351092609,1738331433754,-500.0,0.00016438,2]
[351092610,1738331433765,-500.0,0.00016438,2]
[351092611,1738331433775,-355.88253228,0.00016438,2]
[351092612,1738331433785,-500.0,0.00016438,2]
[351092613,1738331433795,-500.0,0.00016438,2]
[351092614,1738331433805,-500.0,0.00016438,2]
[351092615,1738331433815,-500.0,0.00016438,2]
[351092616,1738331433825,-322.04784096,0.00016438,2]
[351092617,1738331433834,-500.0,0.00016438,2]
[351092618,1738331433845,-512.37741203,0.00016438,2]
[351092619,1738331433854,-500.0,0.00016438,2]
[351092620,1738331433865,-500.0,0.00016438,2]
[351092621,1738331433874,-500.0,0.00016438,2]
[351092622,1738331433884,-500.0,0.00016438,2]
[351092623,1738331433894,-500.0,0.00016438,2]
[351092624,1738331433903,-500.0,0.00016438,2]
[351092625,1738331433913,-500.0,0.00016438,2]
[351092626,1738331433928,-500.0,0.00016438,2]
[351092627,1738331433937,-500.0,0.00016438,2]
[351092628,1738331433949,-500.0,0.00016438,2]
[351092629,1738331433960,-500.0,0.00016438,2]
[351092630,1738331433969,-500.0,0.00016438,2]
[351092631,1738331433979,-500.0,0.00016438,2]
[351092632,1738331433988,-500.0,0.00016438,2]
[351092633,1738331434001,-500.0,0.00016438,2]
[351092634,1738331434011,-500.0,0.00016438,2]
[351092635,1738331434020,-503.29058409,0.00016438,2]
[351092636,1738331434029,-500.0,0.00016438,2]
[351092637,1738331434039,-554.65486346,0.00016438,2]
[351092638,1738331434049,-500.0,0.00016438,2]
[351092639,1738331434059,-500.0,0.00016438,2]
[351092640,1738331434068,-500.0,0.00016438,2]
[351092641,1738331434078,-500.0,0.00016438,2]
[351092642,1738331434088,-500.0,0.00016438,2]
[351092643,1738331434097,-500.0,0.00016438,2]
[351092644,1738331434107,-500.0,0.00016438,2]
[351092645,1738331434116,-500.0,0.00016438,2]
[351092646,1738331434126,-500.0,0.00016438,2]
[351092647,1738331434136,-500.0,0.00016438,2]
[351092648,1738331434145,-500.0,0.00016438,2]
[351092649,1738331434155,-500.0,0.00016438,2]
[351092650,1738331434165,-500.0,0.00016438,2]
[351092651,1738331434175,-477.79257661,0.00016438,2]
[351092652,1738331434185,-500.0,0.00016438,2]
[351092653,1738331434198,-500.0,0.00016438,2]
[351092654,1738331434208,-500.0,0.00016438,2]
[351092655,1738331434217,-500.0,0.00016438,2]
[351092656,1738331434227,-500.0,0.00016438,2]
[351092657,1738331434237,-500.0,0.00016438,2]
[351092658,1738331434247,-500.0,0.00016438,2]
[351092659,1738331434256,-500.0,0.00016438,2]
[351092660,1738331434266,-925.72,0.00016438,2]
[351092661,1738331434276,-500.0,0.00016438,2]
[351092662,1738331434285,-500.0,0.00016438,2]
[351092663,1738331434295,-500.0,0.00016438,2]
[351092664,1738331434304,-504.28,0.00016438,2]
[351092665,1738331434314,-500.0,0.00016438,2]
[351092666,1738331434324,-500.0,0.00016438,2]
[351092667,1738331434335,-500.0,0.00016438,2]
[351092668,1738331434345,-500.0,0.00016438,2]
[351092669,1738331434354,-1000.75,0.00016438,2]
[351092670,1738331434365,-500.0,0.00016438,2]
[351092671,1738331434375,-500.0,0.00016438,2]
[351092672,1738331434385,-500.0,0.00016438,2]
[351092673,1738331434395,-500.0,0.00016438,2]
[351092674,1738331434405,-500.0,0.00016438,2]
[351092675,1738331434415,-370.76779245,0.00016438,2]
[351092676,1738331434425,-500.0,0.00016438,2]
[351092677,1738331434434,-624.31006151,0.00016438,2]
[351092678,1738331434447,-833.39,0.00016438,2]
[351092679,1738331434456,-500.0,0.00016438,2]
[351092680,1738331434465,-500.0,0.00016438,2]
[351092681,1738331434475,-847.51,0.00016438,2]
[351092682,1738331434485,-642.66,0.00016438,2]
[351092683,1738331434494,-620.46,0.00016438,2]
[351092684,1738331434503,-500.0,0.00016438,2]
[351092685,1738331434512,-500.0,0.00016438,2]
[351092686,1738331434521,-514.15597698,0.00016438,2]
[351092687,1738331434531,-500.0,0.00016438,2]
[351092688,1738331434541,-500.0,0.00016438,2]
[351092689,1738331434550,-710.95,0.00016438,2]
[351092690,1738331434559,-751.82,0.00016438,2]
[351092691,1738331434569,-500.0,0.00016438,2]
[351092692,1738331434578,-500.0,0.00016438,2]
[351092693,1738331434587,-502.87673331,0.00016438,2]
[351092694,1738331434596,-500.0,0.00016438,2]
[351092695,1738331434606,-500.0,0.00016438,2]
[351092696,1738331434615,-707.01,0.00016438,2]
[351092697,1738331434624,-728.49,0.00016438,2]
[351092698,1738331434633,-525.1,0.00016438,2]
[351092699,1738331434643,-500.0,0.00016438,2]
[351092700,1738331434652,-500.0,0.00016438,2]
[351092701,1738331434661,-667.53,0.00016438,2]
[351092702,1738331434670,-500.0,0.00016438,2]
[351092703,1738331434680,-688.95,0.00016438,2]
[351092704,1738331434690,-500.0,0.00016438,2]
[351092705,1738331434699,-500.0,0.00016438,2]
[351092706,1738331434708,-500.0,0.00016438,2]
[351092707,1738331434718,-500.0,0.00016438,2]
[351092708,1738331434727,-500.0,0.00016438,2]
[351092709,1738331434736,-500.0,0.00016438,2]
[351092710,1738331434746,-1789.3,0.00016438,2]
[351092711,1738331434755,-507.76104195,0.00016438,2]
[351092712,1738331434765,-1068.02,0.00016438,2]
[351092713,1738331434774,-500.0,0.00016438,2]
[351092714,1738331434784,-500.0,0.00016438,2]
[351092715,1738331434793,-500.0,0.00016438,2]
[351092716,1738331434802,-500.0,0.00016438,2]
[351092717,1738331434811,-500.0,0.00016438,2]
[351092718,1738331434820,-500.0,0.00016438,2]
[351092719,1738331434829,-500.0,0.00016438,2]
[351092720,1738331434838,-500.0,0.00016438,2]
[351092721,1738331434847,-610.12,0.00016438,2]